bitfinex/quotes_BTCUSD_20250829
["timestamp","ask_amount","ask_price","bid_price","bid_amount"]
[1756457646704,0.00147678,109870.0,109860.0,2.32107588]
[1756457647881,0.00147678,109870.0,109860.0,2.58877588]
[1756457648078,0.07063082,109900.0,109890.0,0.18200018]
[1756457648302,0.07063082,109900.0,109890.0,0.43389963]
[1756457648531,0.07261082,109900.0,109890.0,0.43389963]
[1756457648915,0.07063082,109900.0,109890.0,0.43389963]
[1756457649297,0.07163082,109900.0,109890.0,0.43589963]
[1756457649516,0.07163082,109900.0,109890.0,0.43889963]
[1756457649727,0.07063082,109900.0,109890.0,0.43689963]
[1756457649929,0.07276082,109920.0,109910.0,0.18196706]
[1756457650173,0.07272082,109920.0,109910.0,0.42762338]
[1756457650380,0.00209,109920.0,109910.0,0.42762338]
[1756457651585,0.1850405,109920.0,109910.0,0.42762338]
[1756457652135,0.1870505,109920.0,109910.0,0.08829632]
[1756457652352,1.19826224,109920.0,109910.0,0.15836]
[1756457652566,1.19826224,109920.0,109910.0,0.15936]
[1756457653187,0.1870505,109920.0,109910.0,0.15936]
[1756457653399,1.19826224,109920.0,109910.0,0.001]
[1756457653602,1.19826224,109920.0,109910.0,0.15932]
[1756457654025,1.19826224,109920.0,109910.0,0.001]
[1756457654630,1.54669656,109920.0,109910.0,0.001]
[1756457654872,1.56356375,109920.0,109910.0,0.001]
[1756457655094,1.65186007,109920.0,109910.0,0.001]
[1756457655930,0.18198362,109900.0,109890.0,0.00014313]
[1756457656138,1.19319536,109900.0,109890.0,0.08843945]
[1756457656328,1.19528536,109900.0,109890.0,0.08843945]
[1756457656538,1.19729536,109900.0,109890.0,0.08843945]
[1756457656989,0.18608362,109900.0,109890.0,0.08843945]
[1756457657167,1.19729536,109900.0,109890.0,0.08943945]
[1756457657810,1.62559168,109900.0,109890.0,0.00114313]
[1756457658027,1.6508881,109900.0,109890.0,0.00114313]
[1756457658236,1.8088281,109900.0,109890.0,0.00114313]
[1756457658441,1.81515229,109900.0,109890.0,0.00114313]
[1756457658854,1.81515229,109900.0,109890.0,0.00014313]
[1756457658855,2.84672086,109900.0,109890.0,0.00014313]
[1756457659280,1.83650912,109900.0,109890.0,0.00014313]
[1756457659721,1.83850912,109900.0,109890.0,0.00014313]
[1756457659931,1.83950912,109900.0,109890.0,0.00014313]
[1756457660121,1.7512128,109900.0,109890.0,0.00014313]
[1756457660744,1.73085597,109900.0,109890.0,0.00014313]
[1756457661777,2.76242454,109900.0,109890.0,0.00014313]
[1756457661984,1.7482128,109900.0,109890.0,0.00014313]
[1756457662195,1.83650912,109900.0,109890.0,0.00014313]
[1756457662444,1.83650912,109900.0,109890.0,0.00214313]
[1756457662691,1.83550912,109900.0,109890.0,0.00014313]
[1756457662918,2.84672086,109900.0,109890.0,0.00014313]
[1756457663145,7.86616138,109900.0,109890.0,0.00014313]
[1756457663578,7.86716138,109900.0,109890.0,0.00014313]
[1756457663802,6.85594964,109900.0,109890.0,0.00014313]
[1756457664067,0.59812158,109900.0,109890.0,0.00014313]
[1756457664289,1.76767276,109900.0,109890.0,0.00014313]
[1756457665829,1.60935276,109900.0,109890.0,0.00018313]
[1756457666038,1.58698593,109900.0,109890.0,0.00018313]
[1756457666223,1.83360225,109900.0,109890.0,0.00018313]
[1756457667064,1.83561225,109900.0,109890.0,0.00018313]
[1756457667707,1.8187544,109900.0,109890.0,0.00018313]
[1756457667909,1.83564835,109900.0,109890.0,0.00018313]
[1756457668587,2.84686009,109900.0,109890.0,0.00018313]
[1756457670010,2.86721692,109900.0,109890.0,0.00018313]
[1756457670775,0.18204988,109860.0,109850.0,0.01938585]
[1756457670993,1.19326162,109860.0,109850.0,0.01986263]
[1756457671203,1.19526162,109860.0,109850.0,0.01986263]
[1756457671423,1.21214696,109860.0,109850.0,0.02193263]
[1756457671658,1.21014696,109860.0,109850.0,0.02486263]
[1756457672075,1.19626162,109860.0,109850.0,0.02286263]
[1756457672495,1.19526162,109860.0,109850.0,0.02386263]
[1756457672720,0.18404988,109860.0,109850.0,0.02386263]
[1756457672926,1.19526162,109860.0,109850.0,0.02086263]
[1756457673148,1.21014583,109860.0,109850.0,0.02686263]
[1756457673371,1.21014583,109860.0,109850.0,0.02586263]
[1756457673581,0.19893409,109860.0,109850.0,0.02586263]
[1756457673798,1.2190731,109860.0,109850.0,0.02586263]
[1756457674009,1.2190731,109860.0,109850.0,0.02590263]
[1756457674249,0.20786136,109860.0,109850.0,0.02590263]
[1756457674475,0.19097715,109860.0,109850.0,0.29854123]
[1756457674697,0.19197715,109860.0,109850.0,0.11619895]
[1756457674905,0.19197715,109860.0,109850.0,0.2982654]
[1756457675340,0.19197715,109860.0,109850.0,0.11619895]
[1756457676019,0.19197715,109860.0,109850.0,0.2982654]
[1756457676865,0.001,109860.0,109850.0,0.2982654]
[1756457677484,0.18304988,109860.0,109850.0,0.4566254]
[1756457678101,0.001,109860.0,109850.0,0.4566254]
[1756457678317,1.19426162,109860.0,109850.0,0.11619895]
[1756457678534,0.18304988,109860.0,109850.0,0.2982654]
[1756457679146,0.19204386,109860.0,109850.0,0.2982654]
[1756457679986,1.22824132,109860.0,109850.0,0.11619895]
[1756457680194,0.19402386,109860.0,109850.0,0.11619895]
[1756457680399,1.23022132,109860.0,109850.0,0.11326895]
[1756457680639,1.23022132,109860.0,109850.0,0.11119895]
[1756457680834,1.24711427,109860.0,109850.0,0.11119895]
[1756457681051,1.24711427,109860.0,109850.0,0.02290263]
[1756457681052,0.01689295,109860.0,109850.0,0.02290263]
[1756457681248,1.23631285,109860.0,109850.0,0.02290263]
[1756457681451,1.23514029,109860.0,109850.0,0.02290263]
[1756457681891,0.19894283,109860.0,109850.0,0.21224491]
[1756457682102,0.01689295,109860.0,109850.0,0.2982654]
[1756457682732,0.19894283,109860.0,109850.0,0.2982654]
[1756457683164,0.20788713,109860.0,109850.0,0.2982654]
[1756457683396,1.30323088,109860.0,109850.0,0.02290263]
[1756457683610,1.47771341,109860.0,109850.0,0.02290263]
[1756457683823,1.75879712,109860.0,109850.0,0.02290263]
[1756457685114,1.75880368,109860.0,109850.0,0.02290263]
[1756457685338,1.77830396,109860.0,109850.0,0.02290263]
[1756457685542,1.70830396,109860.0,109850.0,0.02290263]
[1756457688349,1.54862396,109860.0,109850.0,0.02290263]
[1756457688554,1.70926396,109860.0,109850.0,0.02290263]
[1756457688759,1.70927021,109860.0,109850.0,0.02290263]
[1756457689939,1.70931021,109860.0,109850.0,0.02290263]
[1756457690373,0.67311275,109860.0,109850.0,0.02290263]
[1756457691271,1.70931021,109860.0,109850.0,0.02290263]
[1756457692369,1.78155704,109860.0,109850.0,0.02290263]
[1756457692793,1.70931021,109860.0,109850.0,0.02290263]
[1756457693217,0.67326275,109860.0,109850.0,0.02290263]
[1756457693436,1.70931021,109860.0,109850.0,0.02290263]
[1756457693673,0.51243275,109860.0,109850.0,0.02290263]
[1756457693884,1.70979021,109860.0,109850.0,0.02290263]
[1756457695505,0.67359275,109860.0,109850.0,0.02290263]
[1756457695723,1.73413056,109860.0,109850.0,0.02290263]
[1756457695849,0.5367731,109860.0,109850.0,0.02290263]
[1756457696084,1.73401056,109860.0,109850.0,0.02814263]
[1756457696672,0.5365431,109860.0,109850.0,0.02814263]
[1756457697108,1.57274056,109860.0,109850.0,0.02814263]
[1756457697316,1.57274056,109860.0,109850.0,0.21020908]
[1756457697531,0.04325992,109860.0,109850.0,0.2985054]
[1756457697746,0.22275579,109860.0,109850.0,0.4595454]
[1756457697953,0.22275579,109860.0,109850.0,0.2985054]
[1756457698618,0.04070591,109860.0,109850.0,0.2985054]
[1756457698834,0.22275579,109860.0,109850.0,0.2985054]
[1756457699053,0.21429796,109860.0,109850.0,0.2985054]
[1756457699249,0.22277524,109860.0,109850.0,0.2985054]
[1756457699902,1.2500284,109860.0,109850.0,0.11643895]
[1756457700107,1.2500284,109860.0,109850.0,0.2985054]
[1756457700108,1.26955772,109860.0,109850.0,0.2985054]
[1756457700325,0.05131038,109860.0,109850.0,0.2985054]
[1756457700546,0.21383094,109860.0,109850.0,0.2985054]
[1756457700772,0.23336446,109860.0,109850.0,0.2985054]
[1756457700984,0.05131458,109860.0,109850.0,0.2985054]
[1756457701218,0.21383094,109860.0,109850.0,0.2985054]
[1756457701637,0.03178106,109860.0,109850.0,0.2985054]
[1756457702721,0.21383094,109860.0,109850.0,0.2985054]
[1756457702935,0.02330696,109860.0,109850.0,0.4598254]
[1756457703152,0.18204988,109860.0,109850.0,0.4598254]
[1756457703401,0.18204988,109860.0,109850.0,0.2985054]
[1756457703640,1.22460592,109860.0,109850.0,0.2985054]
[1756457703892,1.23361845,109860.0,109850.0,0.2985054]
[1756457704593,0.19742099,109860.0,109850.0,0.2985054]
[1756457705241,1.23361845,109860.0,109850.0,0.2985054]
[1756457705905,1.23384845,109860.0,109850.0,0.18934263]
[1756457706120,1.23384845,109860.0,109850.0,0.18410263]
[1756457706341,1.23384845,109860.0,109850.0,0.36616908]
[1756457706555,1.23361845,109860.0,109850.0,0.21020908]
[1756457706770,0.00901253,109860.0,109850.0,0.2985054]
[1756457706967,0.19106241,109860.0,109850.0,0.2985054]
[1756457707232,1.22460565,109860.0,109850.0,0.2985054]
[1756457707463,1.24156046,109860.0,109850.0,0.2985054]
[1756457707671,1.23356712,109860.0,109850.0,0.2985054]
[1756457707899,1.05151724,109860.0,109850.0,0.2985054]
[1756457708122,0.01531978,109860.0,109850.0,0.2985054]
[1756457708336,1.23356712,109860.0,109850.0,0.2985054]
[1756457708549,1.05151741,109860.0,109850.0,0.2985054]
[1756457708774,0.01531995,109860.0,109850.0,0.2985054]
[1756457708992,0.52204583,109880.0,109870.0,0.18203331]
[1756457709205,1.23305175,109880.0,109870.0,0.34827331]
[1756457709440,1.26932182,109880.0,109870.0,0.34827331]
[1756457709649,1.26955182,109880.0,109870.0,0.16411]
[1756457709903,0.18203331,109870.0,109860.0,0.3461857]
[1756457710158,1.22458972,109870.0,109860.0,0.43661202]
[1756457710368,0.00635895,109870.0,109860.0,0.43661202]
[1756457710588,1.04255641,109870.0,109860.0,0.43661202]
[1756457711048,0.00635895,109870.0,109860.0,0.43661202]
[1756457711267,0.00635895,109870.0,109860.0,0.50665202]
[1756457711482,1.236949,109880.0,109870.0,0.18203331]
[1756457711693,1.06976252,109880.0,109870.0,0.27245963]
[1756457711908,1.06776252,109880.0,109870.0,0.27556963]
[1756457712356,1.24977926,109880.0,109870.0,0.27556963]
[1756457712795,1.24977926,109880.0,109870.0,0.43684963]
[1756457713040,1.24977839,109880.0,109870.0,0.43684963]
[1756457713250,0.02309062,109880.0,109870.0,0.43684963]
[1756457713478,0.52200018,109890.0,109880.0,0.18201674]
[1756457713706,1.23302187,109890.0,109880.0,0.18725674]
[1756457714134,0.19682441,109890.0,109880.0,0.18725674]
[1756457714374,1.23302187,109890.0,109880.0,0.18725674]
[1756457714562,0.18201674,109880.0,109870.0,0.27343963]
[1756457714811,1.2182142,109880.0,109870.0,0.43704963]
[1756457715028,1.2184442,109880.0,109870.0,0.43708963]
[1756457715526,1.23476369,109880.0,109870.0,0.27556963]
[1756457715768,1.23476369,109880.0,109870.0,0.34355331]
[1756457715962,1.23476369,109880.0,109870.0,0.16152]
[1756457716178,1.23476369,109880.0,109860.0,0.26428819]
[1756457716394,1.21823077,109870.0,109860.0,0.34348202]
[1756457716603,1.21823077,109870.0,109860.0,0.34561202]
[1756457716808,1.03619746,109870.0,109860.0,0.50701202]
[1756457717019,0.19833623,109880.0,109860.0,0.50701202]
[1756457717234,1.21823077,109870.0,109860.0,0.50701202]
[1756457717440,1.01183639,109870.0,109860.0,0.50701202]
[1756457717847,1.01183639,109870.0,109860.0,0.34661202]
[1756457718310,1.1938697,109870.0,109860.0,0.50685202]
[1756457718526,1.01183639,109870.0,109860.0,0.50685202]
[1756457718736,1.01183639,109870.0,109860.0,0.50885202]
[1756457718940,1.1938697,109870.0,109860.0,0.50885202]
[1756457719140,1.01183639,109870.0,109860.0,0.50885202]
[1756457719341,1.1938697,109870.0,109860.0,0.51085202]
[1756457719646,1.01183639,109870.0,109860.0,0.51085202]
[1756457719863,1.1938697,109870.0,109860.0,0.50873202]
[1756457720081,1.1938697,109870.0,109860.0,0.50973202]
[1756457720338,1.1938697,109870.0,109860.0,0.16657632]
[1756457720570,0.18203331,109870.0,109860.0,0.4396162]
[1756457720794,1.1938697,109870.0,109860.0,0.4386162]
[1756457721003,1.1938697,109870.0,109860.0,0.09748632]
[1756457721210,1.1938697,109870.0,109860.0,0.4386162]
[1756457721411,1.01283639,109870.0,109860.0,0.4386162]
[1756457721612,1.01283639,109870.0,109860.0,0.4366162]
[1756457721814,1.01183639,109870.0,109860.0,0.4366162]
[1756457721967,1.01183639,109870.0,109860.0,0.4376162]
[1756457722830,0.29833623,109880.0,109860.0,0.4376162]
[1756457723053,1.01183639,109870.0,109860.0,0.4376162]
[1756457723277,0.29833623,109880.0,109860.0,0.4376162]
[1756457723489,1.01183639,109870.0,109860.0,0.4376162]
[1756457723742,0.29833623,109880.0,109860.0,0.4386162]
[1756457723976,1.01183639,109870.0,109860.0,0.4354262]
[1756457724189,0.11631949,109880.0,109870.0,0.18203331]
[1756457724403,1.31017262,109880.0,109870.0,0.27232963]
[1756457724636,1.31117262,109880.0,109870.0,0.27551963]
[1756457724849,1.31117262,109880.0,109870.0,0.09348632]
[1756457725062,1.12915588,109880.0,109870.0,0.27779504]
[1756457725338,0.11631949,109880.0,109870.0,0.27551963]
[1756457725524,1.12815588,109880.0,109870.0,0.27551963]
[1756457726447,1.31140262,109880.0,109870.0,0.24921632]
[1756457726650,1.3177582,109880.0,109870.0,0.24921632]
[1756457727234,1.34318939,109880.0,109870.0,0.24921632]
[1756457727685,1.34218939,109880.0,109870.0,0.24921632]
[1756457727895,1.34218939,109880.0,109870.0,0.25021632]
[1756457728069,1.34218939,109880.0,109870.0,0.24921632]
[1756457728509,1.34318939,109880.0,109870.0,0.24921632]
[1756457729086,1.34318939,109880.0,109870.0,0.08829632]
[1756457729273,1.34318939,109880.0,109870.0,0.25033632]
[1756457729444,1.34319637,109880.0,109870.0,0.25025632]
[1756457729684,1.34320033,109880.0,109870.0,0.25025632]
[1756457729882,1.34320033,109880.0,109870.0,0.08829632]
[1756457730105,1.34320033,109880.0,109870.0,0.162]
[1756457730450,0.18204988,109860.0,109850.0,0.02309263]
[1756457730647,1.19388627,109860.0,109850.0,0.27015895]
[1756457730923,1.20259482,109860.0,109850.0,0.27015895]
[1756457731124,1.20259482,109860.0,109850.0,0.27534895]
[1756457731293,0.20771563,109860.0,109850.0,0.27015895]
[1756457731493,1.21955202,109860.0,109850.0,0.01990263]
[1756457731695,1.55970202,109860.0,109850.0,0.01990263]
[1756457731908,0.30237175,109860.0,109850.0,0.01990263]
[1756457732220,0.03179555,109860.0,109850.0,0.21343491]
[1756457732464,0.02543575,109860.0,109850.0,0.21115908]
[1756457732905,0.00847855,109860.0,109850.0,0.2994554]
[1756457733092,0.00847855,109860.0,109850.0,0.3674554]
[1756457733293,0.01696278,109860.0,109850.0,0.37755872]
[1756457733495,1.01183639,109860.0,109850.0,0.54051872]
[1756457733702,1.02902917,109860.0,109850.0,0.54051872]
[1756457733991,1.02902917,109860.0,109850.0,0.53751872]
[1756457733992,0.01696278,109860.0,109850.0,0.53751872]
[1756457734197,0.80181673,109880.0,109860.0,0.18204988]
[1756457734353,1.1938697,109870.0,109860.0,0.2735362]
[1756457734544,1.22568242,109870.0,109860.0,0.2755362]
[1756457734759,1.04387911,109870.0,109860.0,0.18723988]
[1756457734958,1.22591242,109870.0,109860.0,0.00519]
[1756457735390,1.22591242,109870.0,109860.0,0.00319]
[1756457735599,0.18204988,109860.0,109850.0,0.01990263]
[1756457735831,1.21933645,109860.0,109850.0,0.02190263]
[1756457736050,1.22592724,109860.0,109850.0,0.02190263]
[1756457736283,1.39007724,109860.0,109850.0,0.01990263]
[1756457736509,0.71824085,109860.0,109850.0,0.01990263]
[1756457736758,1.72992724,109860.0,109850.0,0.01990263]
[1756457737193,1.65437356,109860.0,109850.0,0.01990263]
[1756457737407,2.68822344,109860.0,109850.0,0.01990263]
[1756457737621,0.68407721,109860.0,109850.0,0.02090263]
[1756457737868,1.6959136,109860.0,109850.0,0.02090263]
[1756457738081,1.6959136,109860.0,109850.0,0.02190263]
[1756457738495,2.70774999,109860.0,109850.0,0.02090263]
[1756457738921,2.70874999,109860.0,109850.0,0.02090263]
[1756457739558,2.70874999,109860.0,109850.0,0.01990263]
[1756457739761,2.72293122,109860.0,109850.0,0.01990263]
[1756457740183,2.72193122,109860.0,109850.0,0.01990263]
[1756457740641,2.72393122,109860.0,109850.0,0.01990263]
[1756457740847,2.70768259,109860.0,109850.0,0.01990263]
[1756457741068,2.70966611,109860.0,109850.0,0.01990263]
[1756457741279,1.7740634,109860.0,109850.0,0.01990263]
[1756457741484,1.75653685,109860.0,109850.0,0.01990263]
[1756457741716,1.75661685,109860.0,109850.0,0.01990263]
[1756457741925,1.75676685,109860.0,109850.0,0.01990263]
[1756457742345,1.77625026,109860.0,109850.0,0.01990263]
[1756457742551,1.86454658,109860.0,109850.0,0.01990263]
[1756457742760,2.87341077,109860.0,109850.0,0.01990263]
[1756457742976,1.86142438,109860.0,109850.0,0.01990263]
[1756457744040,1.60836806,109860.0,109850.0,0.01990263]
[1756457744227,1.77304806,109860.0,109850.0,0.01990263]
[1756457744486,1.60836806,109860.0,109850.0,0.01990263]
[1756457744698,1.77300806,109860.0,109850.0,0.01990263]
[1756457744925,1.58612457,109860.0,109850.0,0.02509263]
[1756457745379,1.58412457,109860.0,109850.0,0.02509263]
[1756457745870,0.57228818,109860.0,109850.0,0.02509263]
[1756457746080,1.58412457,109860.0,109850.0,0.02509263]
[1756457746519,0.57028818,109860.0,109850.0,0.20715908]
[1756457746741,0.02537559,109860.0,109850.0,0.2954554]
[1756457746959,0.20842547,109860.0,109850.0,0.11338895]
[1756457747178,0.22464731,109860.0,109850.0,0.27794895]
[1756457747388,0.21618896,109860.0,109850.0,0.4600154]
[1756457747592,1.22802535,109860.0,109850.0,0.4600154]
[1756457747810,1.22702535,109860.0,109850.0,0.27802895]
[1756457748021,0.21518896,109860.0,109850.0,0.27902895]
[1756457748223,1.23548614,109860.0,109850.0,0.02809263]
[1756457748490,1.2760601,109860.0,109850.0,0.02290263]
[1756457748698,1.63807359,109860.0,109850.0,0.02290263]
[1756457748910,1.80283359,109860.0,109850.0,0.02290263]
[1756457749121,1.80917873,109860.0,109850.0,0.02290263]
[1756457749572,1.79295578,109860.0,109850.0,0.02290263]
[1756457749788,1.79295578,109860.0,109850.0,0.02190263]
[1756457750031,1.79295578,109860.0,109850.0,0.02164596]
[1756457750232,1.74415151,109860.0,109850.0,0.02164596]
[1756457750434,1.75261787,109860.0,109850.0,0.02164596]
[1756457750662,1.75261787,109860.0,109850.0,0.01964596]
[1756457751078,1.75361787,109860.0,109850.0,0.01964596]
[1756457751500,1.8048834,109860.0,109850.0,0.01964596]
[1756457751712,1.78796302,109860.0,109850.0,0.01964596]
[1756457751976,1.80488615,109860.0,109850.0,0.01964596]
[1756457752390,0.58216074,109860.0,109850.0,0.02474596]
[1756457752603,1.59422713,109860.0,109850.0,0.02257596]
[1756457752817,1.59422713,109860.0,109850.0,0.01964596]
[1756457753026,1.59422713,109860.0,109850.0,0.02181596]
[1756457753254,0.59794191,109860.0,109850.0,0.02474596]
[1756457753456,1.5823983,109860.0,109850.0,0.02474596]
[1756457754431,1.5833983,109860.0,109850.0,0.02474596]
[1756457754649,1.67192462,109860.0,109850.0,0.02257596]
[1756457754853,1.67092462,109860.0,109850.0,0.01964596]
[1756457755232,1.67069462,109860.0,109850.0,0.02474596]
[1756457755422,1.67092462,109860.0,109850.0,0.02474596]
[1756457756476,0.65908823,109860.0,109850.0,0.02257596]
[1756457756696,1.67092462,109860.0,109850.0,0.01964596]
[1756457757721,0.65908823,109860.0,109850.0,0.01964596]
[1756457757860,1.7484683,109860.0,109850.0,0.01964596]
[1756457758348,1.7758443,109860.0,109850.0,0.01964596]
[1756457758701,1.7758443,109860.0,109850.0,0.02474596]
[1756457758702,1.6097743,109860.0,109850.0,0.02474596]
[1756457758921,0.59793791,109860.0,109850.0,0.02474596]
[1756457759331,1.6097743,109860.0,109850.0,0.02474596]
[1756457760419,0.25793791,109860.0,109850.0,0.20681241]
[1756457760627,0.23056191,109860.0,109850.0,0.19054596]
[1756457760797,0.23061756,109860.0,109850.0,0.19054596]
[1756457761049,1.24245395,109860.0,109850.0,0.19054596]
[1756457761254,1.2424553,109860.0,109850.0,0.19054596]
[1756457761585,1.2424553,109860.0,109850.0,0.37261241]
[1756457761781,1.2424553,109860.0,109850.0,0.19054596]
[1756457762453,1.22567413,109860.0,109850.0,0.37161241]
[1756457762660,1.22567508,109860.0,109850.0,0.37361241]
[1756457762839,1.21931778,109860.0,109850.0,0.37361241]
[1756457763034,1.21931925,109860.0,109850.0,0.37361241]
[1756457763236,1.20236362,109860.0,109850.0,0.37361241]
[1756457763455,1.20236362,109860.0,109850.0,0.46190873]
[1756457763456,1.02031374,109860.0,109850.0,0.46190873]
[1756457763870,1.20236362,109860.0,109850.0,0.46162873]
[1756457764080,1.19388627,109860.0,109850.0,0.46162873]
[1756457764311,0.19856003,109870.0,109850.0,0.46162873]
[1756457764506,1.22523639,109870.0,109860.0,0.00293]
[1756457764754,1.22523639,109870.0,109860.0,0.0051]
[1756457765424,1.24959399,109870.0,109860.0,0.0051]
[1756457766015,1.24982399,109870.0,109860.0,0.00293]
[1756457766421,1.24134401,109870.0,109860.0,0.00293]
[1756457766711,1.24982345,109870.0,109860.0,0.0051]
[1756457767314,1.24959345,109870.0,109860.0,0.0051]
[1756457767746,0.00847944,109870.0,109860.0,0.27772182]
[1756457767952,1.31938331,109880.0,109870.0,0.18203331]
[1756457768159,1.33305059,109880.0,109870.0,0.44058963]
[1756457768392,1.33305059,109880.0,109870.0,0.25851632]
[1756457768605,1.33305059,109880.0,109870.0,0.44054963]
[1756457768813,1.32669066,109880.0,109870.0,0.25851632]
[1756457769220,1.3342794,109880.0,109870.0,0.25851632]
[1756457769431,1.32892066,109880.0,109870.0,0.44054963]
[1756457769852,1.32869066,109880.0,109870.0,0.44054963]
[1756457770061,1.32021075,109880.0,109870.0,0.44054963]
[1756457770270,1.32868662,109880.0,109870.0,0.44054963]
[1756457771535,0.18204786,109870.0,109860.0,0.00293]
[1756457771757,1.19378001,109870.0,109860.0,0.16781]
[1756457771971,1.19401001,109870.0,109860.0,0.16998]
[1756457772205,1.19378001,109870.0,109860.0,0.0051]
[1756457772850,1.19378001,109870.0,109860.0,0.17002]
[1756457773066,1.19378001,109870.0,109860.0,0.17102]
[1756457773290,0.18204786,109870.0,109860.0,0.17202]
[1756457773516,1.19378001,109870.0,109860.0,0.17202]
[1756457773734,1.19378001,109870.0,109860.0,0.17102]
[1756457774482,1.19378001,109870.0,109860.0,0.17002]
[1756457774692,1.19401001,109870.0,109860.0,0.0051]
[1756457774911,0.18204988,109860.0,109850.0,0.09165596]
[1756457775118,1.19378203,109860.0,109850.0,0.34688228]
[1756457775328,1.19378203,109860.0,109850.0,0.52894873]
[1756457775540,1.19378203,109860.0,109850.0,0.36418873]
[1756457775752,0.18204786,109870.0,109850.0,0.52894873]
[1756457775967,1.01173215,109860.0,109850.0,0.52601873]
[1756457776180,1.01173215,109860.0,109850.0,0.52801873]
[1756457776394,1.19378203,109860.0,109850.0,0.52801873]
[1756457776596,1.19378203,109860.0,109850.0,0.53094873]
[1756457777226,0.18204786,109870.0,109850.0,0.53094873]
[1756457777430,1.20224832,109870.0,109850.0,0.52701873]
[1756457777638,0.19051617,109870.0,109860.0,0.00293]
[1756457777837,0.19051617,109870.0,109860.0,0.0051]
[1756457778039,0.19050162,109870.0,109860.0,0.2754462]
[1756457779054,0.00846831,109870.0,109860.0,0.2754462]
[1756457779275,0.1,109880.0,109870.0,0.18203331]
[1756457779494,0.12539857,109880.0,109870.0,0.43990963]
[1756457779954,0.10846619,109880.0,109870.0,0.43990963]
[1756457780171,0.1,109880.0,109870.0,0.43990963]
[1756457781038,0.101,109880.0,109870.0,0.43990963]
[1756457781686,0.1,109880.0,109870.0,0.46084845]
[1756457782039,0.1,109880.0,109870.0,0.46284845]
[1756457782536,0.1,109880.0,109870.0,0.46484845]
[1756457783106,0.1,109880.0,109870.0,1.4765806]
[1756457783318,0.1,109880.0,109870.0,1.9165806]
[1756457783747,0.1,109880.0,109870.0,0.90484845]
[1756457783969,0.1,109880.0,109870.0,0.74036845]
[1756457784122,0.1,109880.0,109870.0,0.90444845]
[1756457786041,0.1,109880.0,109870.0,1.9161806]
[1756457786489,0.1,109880.0,109870.0,1.7521006]
[1756457786656,0.1,109880.0,109870.0,0.90464845]
[1756457787268,0.1,109880.0,109870.0,0.74036845]
[1756457787618,0.1,109880.0,109870.0,0.90464845]
[1756457787791,0.1,109880.0,109870.0,0.88404845]
[1756457787994,0.1,109880.0,109870.0,1.8957806]
[1756457788203,0.1,109880.0,109870.0,1.8955806]
[1756457788630,0.1,109880.0,109870.0,0.88384845]
[1756457789244,1.16600467,109910.0,109900.0,0.18198362]
[1756457789469,1.17469002,109910.0,109900.0,0.27027994]
[1756457789592,1.17469002,109910.0,109900.0,0.43427994]
[1756457790007,0.16295787,109910.0,109900.0,0.43427994]
[1756457790226,0.18198362,109900.0,109890.0,0.07]
[1756457790449,1.20240112,109900.0,109890.0,0.50502406]
[1756457791078,1.20240044,109900.0,109890.0,0.50502406]
[1756457791681,0.19066829,109900.0,109890.0,0.50502406]
[1756457792039,0.00868467,109900.0,109890.0,0.50502406]
[1756457792231,0.00868467,109900.0,109890.0,0.50797406]
[1756457792387,1.20240044,109900.0,109890.0,0.50502406]
[1756457792945,1.20240044,109900.0,109890.0,0.32290388]
[1756457793156,1.20240044,109900.0,109890.0,0.15834388]
[1756457793392,1.20240044,109900.0,109890.0,0.32382388]
[1756457793618,1.20240044,109900.0,109890.0,0.23552756]
[1756457794034,1.20240044,109900.0,109890.0,0.23652756]
[1756457794622,1.26217803,109900.0,109890.0,0.23636756]
[1756457794788,1.20255044,109900.0,109890.0,0.23636756]
[1756457794996,1.20255044,109900.0,109890.0,0.07204756]
[1756457795199,1.20255044,109900.0,109890.0,0.23636756]
[1756457795400,1.54255044,109900.0,109890.0,0.16636756]
[1756457795647,1.63084676,109900.0,109890.0,0.16628756]
[1756457795807,1.63084676,109900.0,109890.0,0.00204756]
[1756457796010,1.54255044,109900.0,109890.0,0.16624756]
[1756457796214,1.54889523,109900.0,109890.0,0.16524756]
[1756457796837,1.54889523,109900.0,109890.0,0.16424756]
[1756457797542,1.56582037,109900.0,109890.0,0.16424756]
[1756457798054,1.56582037,109900.0,109890.0,4.756e-05]
[1756457798270,2.68534616,109900.0,109890.0,4.756e-05]
[1756457799134,2.84938812,109900.0,109890.0,4.756e-05]
[1756457799280,1.86189116,109900.0,109890.0,4.756e-05]
[1756457800499,1.69785116,109900.0,109890.0,4.756e-05]
[1756457800704,1.72522016,109900.0,109890.0,4.756e-05]
[1756457800908,1.80080384,109900.0,109890.0,4.756e-05]
[1756457801533,1.80081304,109900.0,109890.0,4.756e-05]
[1756457801796,1.80081298,109900.0,109890.0,4.756e-05]
[1756457802003,1.77317398,109900.0,109890.0,4.756e-05]
[1756457802209,1.60941398,109900.0,109890.0,4.756e-05]
[1756457803514,0.57344664,109900.0,109890.0,4.756e-05]
[1756457803903,0.573448,109900.0,109890.0,4.756e-05]
[1756457804342,0.65244834,109900.0,109890.0,4.756e-05]
[1756457804554,0.573448,109900.0,109890.0,0.00514756]
[1756457805175,1.60942218,109900.0,109890.0,4.756e-05]
[1756457807659,0.57345484,109900.0,109890.0,0.00514756]
[1756457807876,0.57345484,109900.0,109890.0,0.00299756]
[1756457808067,0.57345484,109900.0,109890.0,4.756e-05]
[1756457808956,0.57345484,109900.0,109890.0,0.00511756]
[1756457811901,0.57322484,109900.0,109890.0,0.00511756]
[1756457812124,0.57325781,109900.0,109890.0,0.16903756]
[1756457812562,0.23325781,109900.0,109890.0,1.4753014]
[1756457812776,0.21376049,109900.0,109890.0,1.29330122]
[1756457812979,0.21376049,109900.0,109890.0,0.25733388]
[1756457814103,0.19681282,109900.0,109890.0,0.25729388]
[1756457815147,0.19681282,109900.0,109890.0,0.25829388]
[1756457815372,0.19681282,109900.0,109890.0,0.09541388]
[1756457815591,0.19681282,109900.0,109890.0,0.26148888]
[1756457815804,0.19681282,109900.0,109890.0,0.25921388]
[1756457816219,0.19681282,109900.0,109890.0,0.09541388]
[1756457816431,0.19681282,109900.0,109890.0,0.26124888]
[1756457816641,0.19681282,109900.0,109890.0,0.25897388]
[1756457817104,1.23301016,109900.0,109890.0,0.25897388]
[1756457817313,1.23278016,109900.0,109890.0,0.25897388]
[1756457817523,1.23273344,109900.0,109890.0,0.25897388]
[1756457817729,0.1967661,109900.0,109890.0,0.25897388]
[1756457818152,0.1967661,109900.0,109890.0,0.00711756]
[1756457818153,1.23296344,109900.0,109890.0,0.00711756]
[1756457818368,1.23296344,109900.0,109890.0,0.00204756]
[1756457818369,1.58992172,109900.0,109890.0,0.00204756]
[1756457818578,0.55395438,109900.0,109890.0,0.00204756]
[1756457818785,1.58992172,109900.0,109890.0,0.00204756]
[1756457819212,1.58992172,109900.0,109890.0,0.00104756]
[1756457819420,0.55395438,109900.0,109890.0,0.00104756]
[1756457819624,1.58992172,109900.0,109890.0,4.756e-05]
[1756457820240,1.88273728,109900.0,109890.0,4.756e-05]
[1756457820669,1.9022833,109900.0,109890.0,4.756e-05]
[1756457820882,0.86631596,109900.0,109890.0,4.756e-05]